lending/lending_fUSD_20240908
["ID","MTS","AMOUNT","RATE_DAILY","PERIOD"]
[337532658,1725771032402,-151.0,0.000147,2]
[337532659,1725771032411,-152.0,0.00014724,15]
[337532660,1725771032420,-151.0,0.00014724,2]
[337532661,1725771032429,-151.0,0.00014724,2]
[337532662,1725771032438,-151.0,0.00014724,2]
[337532663,1725771032447,-150.0,0.00014731,2]
[337532664,1725771032456,-150.0,0.00014732,2]
[337532665,1725771032465,-150.0,0.00014733,2]
[337532666,1725771032474,-150.0,0.00014741,2]
[337532667,1725771032483,-150.0,0.00014741,2]
[337532668,1725771032493,-150.0,0.00014748,2]
[337532669,1725771032502,-150.0,0.00014749,2]
[337532670,1725771032511,-150.0,0.00014753,2]
[337532671,1725771032520,-1500.0,0.00014764,2]
[337532672,1725771032529,-151.0,0.00014764,2]
[337532673,1725771032538,-440.979443,0.00014764,2]
[337532674,1725771032547,-440.979443,0.00014764,2]
[337532675,1725771032557,-150.0,0.00014766,2]
[337532676,1725771032566,-150.0,0.0001477,2]
[337532677,1725771032575,-194.891404,0.0001477,2]
[337532678,1725771032584,-194.891404,0.0001477,2]
[337532679,1725771032593,-150.0,0.00014772,2]
[337532680,1725771032602,-150.0,0.00014777,2]
[337532681,1725771032611,-152.0,0.00014777,16]
[337532682,1725771032620,-1500.0,0.00014779,2]
[337532683,1725771032630,-150.0,0.0001478,2]
[337532684,1725771032639,-150.0,0.00014783,2]
[337532685,1725771032648,-150.0,0.00014785,2]
[337532686,1725771032658,-150.0,0.00014786,2]
[337532687,1725771032667,-150.0,0.00014787,2]
[337532688,1725771032676,-187.919338,0.0001479,2]
[337532689,1725771032685,-187.919338,0.0001479,2]
[337532690,1725771032695,-151.0,0.0001479,2]
[337532691,1725771032704,-151.0,0.0001479,2]
[337532692,1725771032713,-151.0,0.0001479,2]
[337532693,1725771032722,-151.0,0.0001479,2]
[337532694,1725771032732,-4842.9266,0.0001479,2]
[337532695,1725771032742,-604.3318,0.0001479,2]
[337532696,1725771032751,-150.0,0.00014791,2]
[337532697,1725771032761,-150.0,0.00014792,2]
[337532698,1725771032770,-150.0,0.00014799,2]
[337532699,1725771032779,-151.0,0.000148,2]
[337532700,1725771032788,-151.0,0.000148,2]
[337532701,1725771032798,-750.127055,0.000148,2]
[337532702,1725771032807,-750.127055,0.000148,2]
[337532703,1725771032816,-152.440174,0.000148,2]
[337532704,1725771032825,-1635.0,0.000148,5]
[337532705,1725771032834,-150.0,0.00014802,2]
[337532706,1725771032844,-151.0,0.00014805,2]
[337532707,1725771032853,-180.0,0.00014805,2]
[337532708,1725771032862,-180.0,0.00014805,2]
[337532709,1725771032871,-150.0,0.00014807,2]
[337532710,1725771032880,-150.0,0.00014809,2]
[337532711,1725771032889,-150.0,0.0001481,2]
[337532712,1725771032900,-150.0,0.00014825,2]
[337532713,1725771032911,-152.0,0.00014831,17]
[337532714,1725771032920,-247.62793698,0.00014836,2]
[337532715,1725771032929,-150.0,0.00014838,2]
[337532716,1725771032938,-150.0,0.00014842,2]
[337532717,1725771032947,-150.0,0.00014842,2]
[337532718,1725771032956,-150.0,0.00014847,2]
[337532719,1725771032965,-150.0,0.00014854,2]
[337532720,1725771032976,-151.0,0.00014855,2]
[337532721,1725771032985,-150.0,0.00014856,2]
[337532722,1725771032995,-151.0,0.00014856,2]
[337532723,1725771033003,-440.979443,0.00014856,2]
[337532724,1725771033013,-440.979443,0.00014856,2]
[337532725,1725771033022,-150.0,0.00014858,2]
[337532726,1725771033032,-160.28204531,0.0001486,10]
[337532727,1725771033041,-150.0,0.00014877,2]
[337532728,1725771033050,-151.0,0.0001488,2]
[337532729,1725771033059,-750.127055,0.0001488,2]
[337532730,1725771033068,-750.127055,0.0001488,2]
[337532731,1725771033077,-194.891404,0.0001488,2]
[337532732,1725771033087,-194.891404,0.0001488,2]
[337532733,1725771033096,-187.919338,0.0001488,2]
[337532734,1725771033105,-187.919338,0.0001488,2]
[337532735,1725771033114,-151.0,0.0001488,2]
[337532736,1725771033124,-150.0,0.00014882,2]
[337532737,1725771033133,-151.0,0.00014882,2]
[337532738,1725771033142,-151.0,0.00014882,2]
[337532739,1725771033151,-151.0,0.00014882,2]
[337532740,1725771033161,-151.0,0.00014883,2]
[337532741,1725771033172,-180.0,0.00014883,2]
[337532742,1725771033181,-180.0,0.00014883,2]
[337532743,1725771033190,-662.19317413,0.00014883,2]
[337532744,1725771033199,-152.0,0.00014884,18]
[337532745,1725771033213,-662.19317408,0.00014885,2]
[337532746,1725771033233,-150.0,0.00014886,2]
[337532747,1725771033249,-662.19317408,0.00014887,2]
[337532748,1725771033267,-150.0,0.00014887,2]
[337532749,1725771033286,-662.19317408,0.00014889,2]
[337532750,1725771033305,-151.0,0.00014889,2]
[337532751,1725771033322,-440.979443,0.00014889,2]
[337532752,1725771033340,-440.979443,0.00014889,2]
[337532753,1725771033354,-7109.2575,0.0001489,2]
[337532754,1725771033371,-1290.4056,0.0001489,2]
[337532755,1725771033390,-41574.6985,0.0001489,2]
[337532756,1725771033408,-151.0,0.0001489,2]
[337532757,1725771033420,-151.0,0.0001489,2]
[337532758,1725771033437,-151.0,0.0001489,2]
[337532759,1725771033455,-262.047875,0.0001489,2]
[337532760,1725771033470,-151.0,0.0001489,2]
[337532761,1725771033485,-151.0,0.0001489,2]
[337532762,1725771033501,-152.566992,0.0001489,2]
[337532763,1725771033516,-158.690944,0.0001489,2]
[337532764,1725771033535,-180.0,0.0001489,2]
[337532765,1725771033551,-180.0,0.0001489,2]
[337532766,1725771033566,-180.0,0.0001489,2]
[337532767,1725771033580,-180.0,0.0001489,2]
[337532768,1725771033596,-180.0,0.0001489,2]
[337532769,1725771033611,-180.0,0.0001489,2]
[337532770,1725771033627,-160.817624,0.0001489,2]
[337532771,1725771033644,-750.127055,0.0001489,2]
[337532772,1725771033660,-750.127055,0.0001489,2]
[337532773,1725771033674,-750.127055,0.0001489,2]
[337532774,1725771033690,-750.127055,0.0001489,2]
[337532775,1725771033706,-750.127055,0.0001489,2]
[337532776,1725771033722,-750.127055,0.0001489,2]
[337532777,1725771033737,-194.891404,0.0001489,2]
[337532778,1725771033752,-194.891404,0.0001489,2]
[337532779,1725771033767,-194.891404,0.0001489,2]
[337532780,1725771033783,-194.891404,0.0001489,2]
[337532781,1725771033797,-151.0,0.0001489,2]
[337532782,1725771033812,-151.0,0.0001489,2]
[337532783,1725771033827,-187.919338,0.0001489,2]
[337532784,1725771033842,-187.919338,0.0001489,2]
[337532785,1725771033857,-187.919338,0.0001489,2]
[337532786,1725771033872,-187.919338,0.0001489,2]
[337532787,1725771033888,-187.919338,0.0001489,2]
[337532788,1725771033902,-187.919338,0.0001489,2]
[337532789,1725771033920,-440.979443,0.0001489,2]
[337532790,1725771033936,-440.979443,0.0001489,2]
[337532791,1725771033952,-440.979443,0.0001489,2]
[337532792,1725771033968,-440.979443,0.0001489,2]
[337532793,1725771033983,-151.0,0.0001489,2]
[337532794,1725771033999,-151.0,0.0001489,2]
[337532795,1725771034014,-151.0,0.0001489,2]
[337532796,1725771034029,-334.62206066,0.0001489,2]
[337532797,1725771034044,-151.0,0.0001489,2]
[337532798,1725771034059,-151.0,0.0001489,2]
[337532799,1725771034075,-151.0,0.0001489,2]
[337532800,1725771034090,-151.0,0.0001489,2]
[337532801,1725771034105,-294.436601,0.0001489,2]
[337532802,1725771034121,-151.0,0.0001489,2]
[337532803,1725771034137,-151.0,0.0001489,2]
[337532804,1725771034153,-158.905666,0.0001489,2]
[337532805,1725771034170,-501.6846,0.0001489,2]
[337532806,1725771034185,-662.19317408,0.00014891,2]
[337532807,1725771034199,-151.0,0.00014892,2]
[337532808,1725771034214,-662.19317408,0.00014892,2]
[337532809,1725771034229,-150.0,0.00014893,2]
[337532810,1725771034244,-662.19317408,0.00014894,2]
[337532811,1725771034258,-662.19317408,0.00014896,2]
[337532812,1725771034272,-662.19317408,0.00014898,2]
[337532813,1725771034287,-256.34691131,0.000149,2]
[337532814,1725771034301,-2379.91505313,0.000149,2]
[337532815,1725771034316,-153.86487277,0.000149,2]
[337532816,1725771034331,-357.07743989,0.000149,2]
[337532817,1725771034346,-151.0,0.000149,2]
[337532818,1725771034360,-151.0,0.000149,2]
[337532819,1725771034375,-185.17848117,0.000149,2]
[337532820,1725771034390,-180.0,0.000149,2]
[337532821,1725771034406,-180.0,0.000149,2]
[337532822,1725771034420,-1008.0,0.000149,3]
[337532823,1725771034436,-1000.0,0.000149,3]
[337532824,1725771034451,-1000.0,0.000149,3]
[337532825,1725771034466,-1000.0,0.000149,4]
[337532826,1725771034481,-750.127055,0.000149,2]
[337532827,1725771034496,-1000.0,0.000149,3]
[337532828,1725771034511,-750.127055,0.000149,2]
[337532829,1725771034526,-498.0,0.000149,4]
[337532830,1725771034540,-1000.0,0.000149,3]
[337532831,1725771034556,-662.19317408,0.000149,2]
[337532832,1725771034572,-194.891404,0.000149,2]
[337532833,1725771034583,-194.891404,0.000149,2]
[337532834,1725771034593,-194.891404,0.000149,2]
[337532835,1725771034839,-194.891404,0.000149,2]
[337532836,1725771034859,-154.806744,0.000149,2]
[337532837,1725771034870,-76.51563233,0.000149,2]
[337532838,1725771034982,158.44,0.00010959,2]
[337532842,1725771037524,-151.0,0.00014463,2]
[337532843,1725771037533,-151.0,0.00014504,2]
[337532844,1725771037543,-273.0,0.00014582,2]
[337532845,1725771037554,-993.37845077,0.00014582,2]
[337532846,1725771037563,-151.0,0.00014724,2]
[337532847,1725771037572,-151.0,0.0001479,2]
[337532848,1725771037581,-151.0,0.00014882,2]
[337532849,1725771037591,-151.0,0.0001489,2]
[337532850,1725771037599,-151.0,0.0001489,2]
[337532851,1725771037609,-151.0,0.0001489,2]
[337532852,1725771037618,-111.40370567,0.000149,2]
[337532853,1725771037627,-187.919338,0.000149,2]
[337532854,1725771037636,-187.919338,0.000149,2]
[337532855,1725771037646,-187.919338,0.000149,2]
[337532856,1725771037655,-1737.0,0.000149,2]
[337532857,1725771037664,-440.979443,0.000149,2]
[337532858,1725771037674,-440.979443,0.000149,2]
[337532859,1725771037683,-440.979443,0.000149,2]
[337532860,1725771037693,-440.979443,0.000149,2]
[337532861,1725771037703,-151.0,0.000149,2]
[337532862,1725771037712,-151.0,0.000149,2]
[337532863,1725771037721,-143.53768041,0.000149,2]
[337532864,1725771037736,-191.08438024,0.000149,2]
[337532865,1725771037746,-115.99317352,0.000149,2]
[337532866,1725771037757,-35.00682648,0.000149,2]
[337532867,1725771037767,-151.0,0.000149,2]
[337532868,1725771037776,-151.0,0.000149,2]
[337532869,1725771037786,-151.0,0.000149,2]
[337532870,1725771037795,-52.31765575,0.00014902,2]
[337532871,1725771037806,-97.68234425,0.00014902,2]
[337532872,1725771037814,-150.0,0.00014916,2]
[337532873,1725771037823,-150.0,0.0001492,2]
[337532874,1725771037833,-150.0,0.00014923,2]
[337532875,1725771037842,-150.0,0.00014925,2]
[337532876,1725771037852,-150.0,0.00014927,2]
[337532877,1725771037861,-150.0,0.00014929,2]
[337532878,1725771037870,-150.0,0.00014933,2]
[337532879,1725771037880,-150.0,0.00014934,2]
[337532880,1725771037890,-150.0,0.00014934,2]
[337532881,1725771037901,-177.9404652,0.00014934,2]
[337532882,1725771037914,-152.0,0.00014938,19]
[337532884,1725771037924,-180.0,0.0001495,2]
[337532886,1725771037934,-180.0,0.0001495,2]
[337532888,1725771037944,-150.0,0.00014951,2]
[337532890,1725771037956,-750.127055,0.00014951,2]
[337532891,1725771037966,-750.127055,0.00014951,2]
[337532892,1725771037976,-420.0,0.00014952,2]
[337532893,1725771037988,-151.0,0.00014956,2]
[337532894,1725771037999,-150.0,0.00014957,2]
[337532895,1725771038008,-548.0,0.00014959,2]
[337532896,1725771038017,-150.0,0.00014959,2]
[337532897,1725771038026,-150.0,0.00014959,2]
[337532898,1725771038037,-156.24975706,0.00014962,2]
[337532899,1725771038046,-150.0,0.00014972,2]
[337532900,1725771038056,-169.75834941,0.00014973,2]
[337532901,1725771038066,-500.0,0.00014973,2]
[337532902,1725771038079,-545.62357753,0.00014973,2]
[337532903,1725771038091,-151.0,0.0001498,2]
[337532904,1725771038101,-180.0,0.0001498,2]
[337532905,1725771038111,-180.0,0.0001498,2]
[337532906,1725771038123,-150.0,0.0001498,2]
[337532907,1725771038133,-187.919338,0.0001498,2]
[337532908,1725771038145,-187.919329,0.0001498,2]
[337532909,1725771038154,-151.0,0.0001498,2]
[337532910,1725771038165,-32746.96650748,0.0001498,3]
[337532911,1725771038192,-151.0,0.00014463,2]
[337532912,1725771038201,-3006.23284698,0.0001498,3]
[337532913,1725771038213,-12680.68088358,0.0001498,3]
[337532914,1725771038224,-8864.64676656,0.0001498,3]
[337532915,1725771038233,-4407.57900035,0.00014983,3]
[337532916,1725771038242,-3205.55611852,0.00014986,3]
[337532917,1725771038253,-303.16003,0.00014986,3]
[337532918,1725771038263,-315.0,0.00014986,3]
[337532921,1725771039563,-151.0,0.00014504,2]
[337532922,1725771039572,-151.0,0.00014724,2]
[337532923,1725771039581,-186.365785,0.0001479,2]
[337532924,1725771039591,-583.86285183,0.00014986,3]
[337532925,1725771039600,-501.191429,0.00014989,2]
[337532926,1725771039609,-500.0,0.00014989,2]
[337532927,1725771039619,-500.0,0.00014989,2]
[337532928,1725771039628,-181.75571733,0.00014989,2]
[337532929,1725771039637,-372.7748522,0.00014989,2]
[337532930,1725771039648,-127.2251478,0.00014989,2]
[337532931,1725771039658,-332.02068214,0.00014989,2]
[337532932,1725771039848,-167.97931786,0.00014989,2]
[337532933,1725771039858,-500.0,0.00014989,2]
[337532934,1725771039867,-479.03070398,0.00014989,2]
[337532935,1725771039877,-500.0,0.00014989,2]
[337532936,1725771039886,-500.0,0.00014989,2]
[337532937,1725771039895,-500.0,0.00014989,2]
[337532938,1725771039910,-500.0,0.00014989,2]
[337532939,1725771039920,-290.67915385,0.00014989,2]
[337532940,1725771039932,-209.32084615,0.00014989,2]
[337532941,1725771039941,-100.82618969,0.00014989,2]
[337532942,1725771039964,-399.17381031,0.00014989,2]
[337532943,1725771039973,-500.0,0.00014989,2]
[337532944,1725771039984,-500.0,0.00014989,2]
[337532945,1725771039993,-500.0,0.00014989,2]
[337532946,1725771040002,-200.0,0.00014989,2]
[337532947,1725771040011,-500.0,0.00014989,2]
[337532948,1725771040020,-500.0,0.00014989,2]
[337532949,1725771040029,-519.7373164,0.00014989,2]
[337532950,1725771040038,-497.36692514,0.00014989,2]
[337532951,1725771040049,-2.63307486,0.00014989,2]
[337532952,1725771040058,-500.0,0.00014989,2]
[337532953,1725771040067,-500.0,0.00014989,2]
[337532954,1725771040076,-151.0,0.00014989,2]
[337532955,1725771040086,-176.033323,0.00014989,2]
[337532956,1725771040095,-180.0,0.00014989,2]
[337532957,1725771040104,-180.0,0.00014989,2]
[337532958,1725771040113,-750.127055,0.00014989,2]
[337532959,1725771040123,-750.127049,0.00014989,2]
[337532960,1725771040132,-194.891404,0.00014989,2]
[337532961,1725771040141,-194.891404,0.00014989,2]
[337532962,1725771040150,-194.891404,0.00014989,2]
[337532963,1725771040159,-194.891404,0.00014989,2]
[337532964,1725771040169,-440.979443,0.00014989,2]
[337532965,1725771040179,-440.979443,0.00014989,2]
[337532966,1725771040190,-440.979443,0.00014989,2]
[337532967,1725771040200,-440.979443,0.00014989,2]
[337532968,1725771040210,-119004.633009,0.0001499,3]
[337532969,1725771040220,-153.81,0.0001499,2]
[337532970,1725771040231,-151.0,0.0001499,2]
[337532971,1725771040241,-151.0,0.0001499,2]
[337532972,1725771040251,-151.0,0.0001499,2]
[337532973,1725771040262,-194.891404,0.0001499,2]
[337532974,1725771040272,-194.891404,0.0001499,2]
[337532975,1725771040282,-194.891404,0.0001499,2]
[337532976,1725771040293,-194.891397,0.0001499,2]
[337532977,1725771040303,-22037.8950017,0.0001499,3]
[337532978,1725771040312,-252.9853371,0.0001499,3]
[337532979,1725771040323,-440.979443,0.0001499,2]
[337532980,1725771040334,-440.979434,0.0001499,2]
[337532981,1725771040344,-152.0,0.00014992,20]
[337532982,1725771040354,-170.7479101,0.00014993,2]
[337532983,1725771040363,-8647.2587067,0.00014993,2]
[337532984,1725771040372,-454.3781505,0.00014993,2]
[337532985,1725771040381,-150.0,0.00014996,2]
[337532986,1725771040390,-58838.36350904,0.00015,2]
[337532988,1725771042589,-152.42,0.00013987,2]
[337532989,1725771042598,-6275.86499988,0.00015,2]
[337532990,1725771042609,-27020.25076693,0.00015,2]
[337532991,1725771042621,-630.18302999,0.00015,2]
[337532992,1725771042650,-311.308985,0.00015,2]
[337532993,1725771042661,-297.59077079,0.00015,2]
[337532998,1725771043118,-2694.80145435,0.00015,2]
[337532999,1725771043163,-5161.09703471,0.00015,2]
[337533000,1725771043174,-16513.05539984,0.00015,2]
[337533001,1725771043185,-42747.32697915,0.00015,2]
[337533002,1725771043215,-89845.34377403,0.00015,2]
[337533003,1725771043224,-82548.44983459,0.00015,2]
[337533004,1725771043275,-883.32723249,0.00015,2]
[337533005,1725771046041,-30122.10416711,0.00015,2]
[337533006,1725771160159,162.35,0.00012213,2]
[337533044,1725771578813,246.03,0.00010959,2]
[337533407,1725771675206,162.02,0.00011901,2]
[337533420,1725772162329,161.71,0.00011844,2]
[337533422,1725772195055,159.24,0.00010959,2]
[337533426,1725772231750,-250.0,0.00013656,2]
[337533427,1725772231761,-152.42,0.00013699,2]
[337533428,1725772231771,-166.0,0.00013716,2]
[337533429,1725772231851,-84.0,0.00013716,2]
[337533430,1725772231861,-243.38,0.00013716,2]
[337533431,1725772231871,-829.0,0.0001372,2]
[337533432,1725772231880,-800.0,0.00013721,2]
[337533433,1725772231889,-250.0,0.00013741,2]
[337533434,1725772231899,-3772.3,0.00013765,2]
[337533435,1725772231908,-200.01,0.00013773,2]
[337533436,1725772231917,-607.45,0.00013773,2]
[337533437,1725772231927,-303.71048759,0.00013826,2]
[337533438,1725772231936,-271.56,0.00013863,2]
[337533439,1725772231946,-200.0,0.00013961,2]
[337533440,1725772231955,-263.56,0.00014016,2]
[337533441,1725772231966,-161.71,0.00014108,2]
[337533442,1725772231975,-152.0,0.00014217,3]
[337533443,1725772231985,-152.0,0.00014641,4]
[337533444,1725772231996,-165.656195,0.00014795,2]
[337533445,1725772232006,-300.0,0.00014799,2]
[337533446,1725772232017,-23227.00678143,0.000148,2]
[337533447,1725772232058,-479.57301165,0.000148,2]
[337533450,1725772237850,-1939.80159629,0.000148,2]
[337533453,1725772239758,-775.20761562,0.000148,2]
[337533454,1725772239770,-345.69,0.000148,2]
[337533455,1725772240079,-563.31,0.000148,2]
[337533456,1725772240091,-1629.78778387,0.000148,2]
[337533463,1725772242800,-687.82703038,0.000148,2]
[337533464,1725772242857,-6512.86008076,0.000148,2]
[337533465,1725772242867,-166.995,0.0001486,2]
[337533466,1725772242876,-150.0,0.00014879,2]
[337533467,1725772242886,-577.0052,0.0001488,2]
[337533468,1725772242895,-1504.3054,0.0001488,2]
[337533469,1725772242905,-326.86543169,0.000149,2]
[337533470,1725772242914,-381.1059,0.000149,2]
[337533471,1725772242924,-8815.15800084,0.0001497,3]
[337533472,1725772242934,-160.031296,0.00014973,2]
[337533473,1725772242944,-500.0,0.00014973,2]
[337533474,1725772242954,-303847.33501541,0.0001498,2]
[337533475,1725772242964,-30853.0530029,0.0001498,3]
[337533476,1725772242974,-4845.6286337,0.00014993,2]
[337533477,1725772242983,-300.0,0.00014999,2]
[337533478,1725772242995,-500.0,0.00014999,2]
[337533479,1725772243004,-168.85970182,0.00014999,2]
[337533480,1725772243014,-132605.13593913,0.00015,2]
[337533488,1725772243416,-573.92650486,0.00015,2]
[337533489,1725772243427,-3631.00494065,0.00015,2]
[337533490,1725772243648,750.0,0.00011,2]
[337533492,1725772246293,-800.0,0.00013,2]
[337533493,1725772246302,-573.55045149,0.00015,2]
[337533494,1725772246314,-575.6,0.00015,2]
[337533495,1725772246370,-487.75414237,0.00015,2]
[337533496,1725772246464,-29389.99515299,0.00015,2]
[337533497,1725772246475,-19914.42289629,0.00015,2]
[337533498,1725772246485,-13083.09314993,0.00015,2]
[337533523,1725772698282,153.15,0.00010999,2]
[337533524,1725772740441,171.6,0.00011792,2]
[337533528,1725772936477,4625.0,0.000126,5]
[337533693,1725772970293,153.07,0.00010959,2]
[337534369,1725773114547,300.0,0.00010959,2]
[337534370,1725773125217,603.7,0.00010959,2]
[337534371,1725773135623,830.93,0.00010959,2]
[337534372,1725773215907,153.08,0.00010704,2]
[337534373,1725773247318,215.14,0.00011424,2]
[337534379,1725773392353,248.226519,0.00012636,2]
[337534380,1725773402667,150.0,0.00011424,2]
[337534381,1725773402733,151.23908463,0.00011424,2]
[337534392,1725773431889,-368.5485562,0.000129,2]
[337534394,1725773431899,-500.0,0.00012973,2]
[337534396,1725773431908,-1971.4514438,0.00013,2]
[337534397,1725773432006,-968.61574791,0.00013,2]
[337534398,1725773432017,-4259.88729605,0.00013,2]
[337534399,1725773432064,-295.44814184,0.00013,2]
[337534400,1725773432075,-1296.1257819,0.00013,2]
[337534401,1725773432125,-9743.17256487,0.00013,2]
[337534405,1725773437924,-333.57096471,0.00012873,2]
[337534406,1725773437939,-2402.50612382,0.00013,2]
[337534407,1725773437984,-32850.39336617,0.00013,2]
[337534408,1725773438002,-1150.0,0.00013,2]
[337534413,1725773438427,-1537.30297559,0.00013,2]
[337534419,1725773442969,-1704.9,0.00013,2]
[337534439,1725773443573,-5350.86586941,0.00013,2]
[337534475,1725773446002,-46017.16660328,0.00013,2]
[337534476,1725773448214,-29389.99580529,0.00013,2]
[337534477,1725773529422,158.45,0.00010959,2]
[337534480,1725773780912,153.08,0.00010343,2]
[337534481,1725773792721,215.58,0.00011038,2]
[337534482,1725773819397,2808.57,0.00012277,2]
[337534484,1725773840780,441.91,0.00012282,2]
[337534485,1725773881909,189.15,0.00012311,2]
[337534486,1725773919995,250.0,0.00012293,2]
[337534487,1725773967838,1182.76,0.00012322,2]
[337534488,1725773986848,3305.08,0.00012322,2]
[337534489,1725773995284,200.0,0.00012262,2]
[337534490,1725774024393,238.5,0.00012318,2]
[337534491,1725774025854,793.08,0.00012318,2]
[337534492,1725774031603,158.44,0.00010959,2]
[337534493,1725774052414,750.0,0.00011,2]
[337534494,1725774063174,450.0,0.00012498,2]
[337534495,1725774092285,287.24,0.0001251,2]
[337534496,1725774123697,184.16169411,0.000127,2]
[337534497,1725774165799,20388.63270226,0.00012375,2]
[337534498,1725774165825,2344.50729774,0.00012375,2]
[337534499,1725774207109,3522.05701032,0.000127,2]
[337534500,1725774224733,5514.4539,0.000127,2]
[337534501,1725774315038,218.63,0.00011055,2]
[337534504,1725774407986,2192.71,0.00012,2]
[337534505,1725774421171,260.3809,0.00012608,2]
[337534506,1725774426903,184.1616941,0.000127,2]
[337534509,1725774528186,233.72,0.00010959,2]
[337534511,1725774632071,-351.4789161,0.00012764,2]
[337534512,1725774632082,-13.58867609,0.000128,2]
[337534513,1725774632232,-166.39442774,0.000128,2]
[337534514,1725774632242,-319.2021,0.000129,2]
[337534515,1725774632252,-236.37398193,0.000129,2]
[337534516,1725774632262,-27.57795642,0.000129,2]
[337534517,1725774632274,-730.82006204,0.000129,2]
[337534522,1725774638106,-1699.45179557,0.000129,2]
[337534523,1725774638273,-9041.21318597,0.000129,2]
[337534524,1725774638283,-200.0,0.00012932,2]
[337534525,1725774638292,-150.0,0.00012952,2]
[337534526,1725774638301,-151.79,0.00012952,2]
[337534527,1725774638310,-1404.28,0.00012959,2]
[337534528,1725774638319,-189.15,0.00012963,2]
[337534529,1725774638329,-250.0,0.00012963,2]
[337534530,1725774638338,-200.0,0.00012969,2]
[337534531,1725774638347,-250.0,0.00012975,2]
[337534532,1725774638357,-1000.0,0.00012982,2]
[337534533,1725774638367,-1120.00960987,0.0001299,2]
[337534534,1725774638378,-250.0,0.00013,2]
[337534535,1725774638388,-151203.66742995,0.00013,2]
[337534536,1725774638398,-500.0,0.00013,2]
[337534537,1725774638409,-800.0,0.00013,2]
[337534538,1725774638419,-1303.94863,0.00013,2]
[337534539,1725774638429,-151.05,0.00013009,2]
[337534540,1725774638438,-1303.94864,0.0001307,2]
[337534541,1725774638449,-210.85,0.00013121,2]
[337534542,1725774638459,-236.37398188,0.00013122,2]
[337534543,1725774638468,-1303.94864,0.0001314,2]
[337534544,1725774638478,-1303.94863,0.0001322,2]
[337534545,1725774638487,-167.4,0.00013287,2]
[337534546,1725774638496,-1303.94864,0.000133,2]
[337534547,1725774638505,-218.63,0.00013319,2]
[337534548,1725774638515,-236.37398188,0.00013344,2]
[337534549,1725774638524,-1303.94864,0.0001338,2]
[337534550,1725774638533,-362.34289394,0.00013548,2]
[337534551,1725774638542,-236.37398188,0.00013567,2]
[337534552,1725774638551,-158.69,0.00013618,2]
[337534553,1725774638561,-152.42,0.00013699,2]
[337534554,1725774638570,-8053.238,0.00013762,2]
[337534555,1725774638580,-236.37398188,0.00013789,2]
[337534556,1725774638589,-189.15,0.0001385,2]
[337534557,1725774638599,-152.0,0.00013862,3]
[337534558,1725774638609,-152.0,0.00013931,4]
[337534559,1725774638618,-152.0,0.00014,5]
[337534560,1725774638627,-700.45303,0.00014,2]
[337534561,1725774638637,-236.37398188,0.00014011,2]
[337534562,1725774638646,-152.0,0.00014069,6]
[337534563,1725774638656,-152.0,0.00014138,7]
[337534564,1725774638665,-150.59,0.00014192,2]
[337534565,1725774638674,-152.0,0.00014207,8]